bitfinex/quotes_ETHUSD_20241124
["timestamp","ask_amount","ask_price","bid_price","bid_amount"]
[1732453470063,0.0008,3317.8,3317.7,2.71272]
[1732453474472,0.0008,3317.8,3317.7,7.28225973]
[1732453474760,0.0008,3317.8,3317.7,8.52290797]
[1732453476774,1.5512215,3318.6,3318.3,2.71221]
[1732453476926,0.03022387,3318.5,3318.3,2.71221]
[1732453477120,0.04057577,3318.4,3318.3,2.71216]
[1732453477327,2.16528667,3318.6,3318.3,2.71216]
[1732453477624,2.71528667,3318.6,3318.5,2.71206]
[1732453477860,8.99,3318.8,3318.5,2.71206]
[1732453478060,8.99,3318.8,3318.7,2.7119]
[1732453478867,0.59275977,3318.9,3317.7,8.52290797]
[1732453479181,0.04058322,3318.8,3318.7,2.71185]
[1732453479532,0.55,3319.2,3318.8,2.71175]
[1732453479858,0.55,3319.0,3318.7,2.71185]
[1732453480054,0.55,3319.0,3318.7,2.71183]
[1732453480349,0.55,3318.8,3318.5,2.71204]
[1732453480527,0.03022387,3318.7,3317.8,3.5649108]
[1732453480730,0.04066142,3318.6,3318.3,2.71217]
[1732453480924,0.04066142,3318.6,3318.4,2.71214]
[1732453481152,3.56305,3318.9,3318.3,2.71217]
[1732453481356,0.55,3318.7,3318.4,2.71214]
[1732453481583,0.55,3319.1,3318.4,2.71208]
[1732453481863,0.04065397,3318.6,3318.4,2.71208]
[1732453482065,0.55,3318.9,3318.4,2.71208]
[1732453482250,0.04065397,3318.5,3317.7,4.5844]
[1732453482453,0.55,3318.4,3318.0,2.71245]
[1732453482665,0.55,3318.5,3318.0,2.71247]
[1732453482828,0.55,3318.2,3318.0,2.71247]
[1732453483229,0.04065397,3318.1,3318.0,2.71247]
[1732453483473,0.04065397,3318.1,3317.8,2.71257]
[1732453483824,0.04065397,3318.1,3318.0,2.71247]
[1732453484030,0.04065397,3318.1,3318.0,2.92116724]
[1732453484372,0.6053257,3318.5,3318.2,2.71229]
[1732453484666,0.55,3318.4,3318.1,2.71236]
[1732453484871,0.59065397,3318.4,3318.2,0.20873453]
[1732453485027,0.62087784,3318.4,3318.0,2.71245]
[1732453485227,0.59065397,3318.4,3318.1,0.20876508]
[1732453485873,0.55,3318.0,3317.4,2.71289]
[1732453486183,1.5512,3317.8,3317.5,0.2089766]
[1732453486393,1.5512,3317.0,3316.4,2.71378]
[1732453486564,0.58022387,3316.9,3316.6,2.82356]
[1732453486766,0.55,3317.2,3316.9,2.71336]
[1732453486965,8.99,3317.3,3316.6,0.11]
[1732453487138,0.55,3317.5,3316.7,0.282366]
[1732453487340,0.55,3317.9,3317.7,2.71266]
[1732453487584,0.5999699,3318.4,3317.7,2.71267]
[1732453487799,0.5999699,3318.4,3317.8,2.71257]
[1732453487958,0.5999699,3318.4,3318.1,2.71239]
[1732453488467,0.5999699,3318.4,3318.3,2.71223]
[1732453488670,1.5512,3318.7,3318.3,2.71223]
[1732453488983,8.99,3318.9,3318.5,2.71202]
[1732453489185,8.99,3318.9,3318.3,2.71223]
[1732453489186,0.899,3318.9,3318.3,2.71223]
[1732453489353,0.899,3318.9,3317.5,2.71283]
[1732453489354,3.01339,3318.6,3317.1,0.36973543]
[1732453489560,0.03022387,3318.5,3318.0,2.71247]
[1732453489757,8.99,3318.5,3318.0,2.71247]
[1732453490228,8.99,3318.5,3318.1,2.71231]
[1732453490590,0.59322925,3318.8,3318.2,2.7123]
[1732453490788,0.59322925,3318.8,3317.9,2.71255]
[1732453490789,8.99,3318.9,3318.4,2.71213]
[1732453491177,8.99,3319.0,3318.4,2.71207]
[1732453491376,0.55,3318.9,3317.9,0.436202]
[1732453491571,9.54,3318.9,3318.0,2.71247]
[1732453491772,9.54,3318.9,3318.6,2.71197]
[1732453492674,0.55,3318.9,3318.8,2.71182]
[1732453493082,0.59575722,3319.0,3318.8,2.71182]
[1732453493283,1.5512,3319.1,3318.9,2.71173]
[1732453493519,1.5512,3319.1,3318.8,2.71182]
[1732453494062,0.03910572,3319.0,3318.8,2.71182]
[1732453494186,0.03910572,3319.0,3318.9,2.71174]
[1732453494514,0.58910572,3319.0,3318.9,2.71174]
[1732453494686,0.58910572,3319.0,3318.7,2.71183]
[1732453495022,0.55,3318.9,3318.8,2.71176]
[1732453495604,0.58910572,3318.9,3318.8,2.71176]
[1732453497931,0.5871511,3318.9,3318.8,2.71176]
[1732453498693,2.1383511,3318.9,3317.3,1.6494]
[1732453498932,3.01338,3318.6,3317.4,2.90801407]
[1732453499136,2.1383511,3318.9,3317.4,0.19507407]
[1732453499305,0.03971333,3318.5,3318.3,2.71222]
[1732453499505,2.09924538,3318.9,3318.3,2.71222]
[1732453499506,2.09924538,3318.9,3318.3,2.7122]
[1732453499707,0.03975433,3318.8,3318.6,2.7119]
[1732453499923,0.55,3318.7,3318.4,2.71206]
[1732453500443,0.58975433,3318.6,3318.5,2.71206]
[1732453500800,0.58975433,3318.6,3318.1,2.71237]
[1732453500801,0.55,3318.5,3318.1,2.71237]
[1732453501119,0.55,3318.5,3318.4,2.71215]
[1732453501320,0.58975433,3318.5,3318.4,2.71215]
[1732453501636,0.03975433,3318.5,3318.4,7.27725]
[1732453502043,8.99,3319.4,3318.7,3.0]
[1732453502334,9.58792368,3319.7,3319.2,2.71149]
[1732453502505,9.58792368,3319.7,3319.0,5.42316]
[1732453502837,0.58975433,3319.6,3319.0,2.7116]
[1732453503047,0.58975433,3319.6,3319.1,2.71156]
[1732453503399,0.58975433,3319.6,3318.9,2.71169]
[1732453503637,0.58975433,3319.6,3319.0,2.71165]
[1732453504038,0.58975433,3319.6,3319.1,2.71156]
[1732453504397,0.03975433,3319.6,3318.8,0.03012881]
[1732453504602,0.03975433,3319.6,3319.4,2.71132]
[1732453504903,0.03975433,3319.6,3319.5,2.71125]
[1732453505222,8.99,3319.9,3319.4,2.71132]
[1732453505448,0.03975433,3319.6,3319.3,2.71141]
[1732453505752,0.58022387,3319.8,3319.3,2.71141]
[1732453505953,0.55,3319.4,3319.3,2.71141]
[1732453506473,0.58975433,3319.4,3319.3,2.71141]
[1732453506817,0.58975433,3319.4,3319.3,4.918897]
[1732453507019,0.03975433,3319.4,3319.3,4.918897]
[1732453507341,8.99,3319.9,3319.5,2.71121]
[1732453507673,0.03975433,3319.8,3319.3,2.71141]
[1732453507962,1.5439,3319.7,3318.2,1.6652]
[1732453508114,1.5439,3319.2,3318.2,1.6652]
[1732453508459,0.55,3319.0,3318.3,2.71223]
[1732453508756,0.55,3319.0,3318.8,2.71181]
[1732453508915,0.55,3319.0,3318.9,2.71174]
[1732453509118,0.55,3319.0,3318.3,5.42446]
[1732453509119,0.55,3319.0,3318.3,0.437748]
[1732453509316,0.55,3319.0,3318.2,4.37746]
[1732453509517,0.55,3319.0,3318.9,2.71174]
[1732453510318,8.99,3319.1,3319.0,2.71166]
[1732453510521,11.13495047,3319.9,3319.6,2.71112]
[1732453510832,9.02022387,3319.8,3319.6,2.71112]
[1732453511039,8.99,3319.8,3319.6,2.71112]
[1732453511579,8.99,3319.8,3319.7,2.71108]
[1732453512520,0.60105047,3319.9,3319.8,2.711]
[1732453513419,8.99,3320.5,3319.9,2.71092]
[1732453514062,4.458447,3320.0,3319.9,2.71092]
[1732453514960,0.55,3319.9,3319.8,2.71098]
[1732453515956,0.55,3319.9,3319.6,2.71109]
[1732453516460,0.55,3319.9,3319.5,2.7112]
[1732453516705,0.55,3319.9,3319.4,1.6652]
[1732453516914,0.55,3319.9,3319.6,5.42224]
[1732453517198,0.55,3319.9,3319.6,2.71109]
[1732453517412,0.55,3319.9,3319.6,5.42219]
[1732453517574,0.55,3319.9,3319.7,2.71107]
[1732453518506,0.55,3319.9,3319.6,2.71114]
[1732453518711,0.55,3319.9,3319.1,5.71155]
[1732453518712,0.03022387,3319.8,3319.2,2.71143]
[1732453519013,0.55,3319.7,3319.2,2.71144]
[1732453519212,0.55,3319.7,3319.6,2.71117]
[1732453519364,0.55,3319.9,3319.4,2.71129]
[1732453519565,0.58022387,3319.9,3319.5,2.71123]
[1732453519765,0.55,3319.9,3319.1,3.0]
[1732453520003,0.55,3319.9,3319.7,2.71103]
[1732453520161,3.908447,3320.0,3319.8,4.2913]
[1732453520809,3.908447,3320.0,3319.5,2.7112]
[1732453521119,3.93867087,3320.0,3319.5,2.71118]
[1732453521283,3.908447,3320.0,3319.7,2.71107]
[1732453521477,0.55,3319.9,3319.5,2.71118]
[1732453521693,0.55,3319.9,3319.7,2.71107]
[1732453521866,0.55,3319.9,3319.8,2.711]
[1732453523365,0.55,3319.9,3319.6,2.71109]
[1732453523571,0.55,3319.9,3319.8,2.711]
[1732453523767,3.908447,3320.0,3319.9,2.71092]
[1732453524066,3.94899858,3320.0,3319.9,3.253112]
[1732453524267,3.94899858,3320.0,3319.9,7.833412]
[1732453525667,8.58e-06,3320.0,3319.9,7.833412]
[1732453525869,1.58e-06,3320.0,3319.9,7.833412]
[1732453526064,0.1480215,3321.5,3321.1,2.70986]
[1732453526314,0.1480215,3321.5,3321.4,2.7097]
[1732453526490,0.1480215,3321.5,3320.9,1.6437]
[1732453526491,0.03784848,3321.4,3321.3,2.70977]
[1732453526807,0.03784848,3321.4,3320.9,1.6437]
[1732453527007,0.03784848,3321.4,3321.2,2.7098]
[1732453527307,0.03784848,3321.4,3321.3,2.70978]
[1732453528510,0.03784848,3321.4,3320.7,2.71024]
[1732453528711,0.1480215,3321.5,3321.2,2.70982]
[1732453529162,0.1480215,3321.5,3321.4,2.7097]
[1732453529362,0.1480215,3321.5,3321.2,2.70982]
[1732453529668,3.01093,3321.3,3320.7,3.0]
[1732453529866,3.01093,3321.3,3320.7,5.71026]
[1732453529867,1.5512,3321.2,3320.7,5.71026]
[1732453530066,1.5512,3321.2,3320.8,2.71014]
[1732453530615,0.55,3321.4,3321.0,2.70999]
[1732453530812,0.55,3321.4,3321.1,2.70988]
[1732453531104,0.55,3321.4,3321.2,2.70986]
[1732453531608,0.55,3321.4,3321.1,2.40879]
[1732453532384,0.77492215,3321.4,3320.6,2.40914]
[1732453532598,0.55,3321.1,3320.4,2.40934]
[1732453532800,0.55,3321.1,3320.6,2.40918]
[1732453533132,0.55,3320.9,3320.3,2.40937]
[1732453533316,0.55,3320.9,3320.6,2.40918]
[1732453533630,0.55,3320.7,3320.6,2.40913]
[1732453534325,0.55,3320.7,3320.4,2.40928]
[1732453534326,0.55,3321.0,3320.4,2.40928]
[1732453534489,3.01133,3320.8,3319.7,5.40985]
[1732453534693,0.55,3320.7,3320.2,2.40948]
[1732453534893,0.6356784,3320.7,3320.2,2.40943]
[1732453535329,0.6356784,3320.7,3320.4,2.40934]
[1732453535534,0.6356784,3320.7,3320.6,2.4092]
[1732453535897,0.55,3320.7,3320.6,2.4092]
[1732453536229,3.56105,3321.1,3320.5,2.4092]
[1732453536532,0.55,3321.3,3320.8,2.40905]
[1732453536732,0.55,3321.3,3320.7,2.4091]
[1732453536733,0.6356784,3321.0,3320.9,2.40898]
[1732453536897,0.55,3321.0,3320.9,2.40898]
[1732453537093,0.6356784,3321.0,3320.9,2.40898]
[1732453538097,0.6356784,3321.0,3320.5,0.16437]
[1732453538098,0.55,3320.9,3320.5,2.40926]
[1732453538306,0.55,3320.9,3320.4,2.40932]
[1732453538507,0.55,3320.7,3320.4,2.40932]
[1732453538712,0.55,3320.7,3320.4,4.81861]
[1732453538912,0.55,3320.5,3320.4,2.40929]
[1732453539327,0.53494,3320.5,3320.4,6.19417222]
[1732453539822,0.62057002,3320.5,3320.3,5.40936]
[1732453540029,0.62057002,3320.5,3320.4,2.40934]
[1732453540539,0.62057002,3320.5,3320.1,2.40951]
[1732453540846,0.62057002,3320.5,3320.0,4.6437]
[1732453541030,0.62057002,3320.5,3320.4,2.40934]
[1732453541191,0.62057002,3320.5,3320.2,2.40949]
[1732453541397,0.62057002,3320.5,3320.4,2.40934]
[1732453541897,0.62057002,3320.5,3320.1,0.16437]
[1732453542100,0.62057002,3320.5,3320.4,2.40934]
[1732453542409,0.62057002,3320.5,3320.2,2.590227]
[1732453542726,0.62057002,3320.5,3320.4,2.40934]
[1732453542931,0.62057002,3320.5,3319.2,3.0]
[1732453543134,0.62057002,3320.5,3319.1,1.6123]
[1732453543135,0.55,3320.2,3319.4,2.41007]
[1732453543305,0.55,3320.2,3319.5,0.03011726]
[1732453543505,0.55,3320.0,3319.8,2.40974]
[1732453543948,0.63510898,3319.9,3319.8,2.40974]
[1732453544171,0.55,3319.8,3319.7,2.40985]
[1732453544449,0.55,3319.8,3319.1,1.6123]
[1732453544647,0.55,3319.6,3319.2,0.16123]
[1732453544958,0.55,3319.6,3318.8,2.41046]
[1732453545103,0.55,3319.6,3319.1,2.41027]
[1732453545304,0.55,3319.4,3319.2,0.27114906]
[1732453545644,10.5412,3320.2,3319.3,2.41014]
[1732453545939,0.55,3320.1,3319.4,0.29523522]
[1732453546145,0.63488186,3320.1,3319.5,1.5402]
[1732453546329,0.63488186,3320.1,3319.6,0.03011868]
[1732453546528,0.63488186,3320.1,3319.8,2.40974]
[1732453546852,0.08488186,3320.1,3319.8,2.43985812]
[1732453547012,0.08488186,3320.1,3319.9,2.4097]
[1732453547214,3.01142,3320.7,3320.0,0.51506985]
[1732453547409,0.08488186,3320.6,3319.9,0.03011413]
[1732453547752,0.08488186,3320.6,3320.1,2.4095]
[1732453547951,0.08488186,3320.6,3320.2,2.68049273]
[1732453548245,0.08488186,3320.5,3320.4,2.40934]
[1732453548752,1.5512,3321.0,3320.3,5.40937]
[1732453549047,1.5512,3321.0,3320.4,2.89046627]
[1732453549236,0.08488186,3320.9,3320.4,2.89046627]
[1732453549436,0.55,3320.8,3320.4,2.89046627]
[1732453549638,0.55,3320.8,3320.4,0.48112627]
[1732453549953,0.55,3320.9,3320.0,2.40958]
[1732453550248,0.55,3320.6,3319.8,1.5402]
[1732453550409,0.55,3320.4,3319.9,3.394995]
[1732453550605,0.55,3320.4,3320.0,0.7344915]
[1732453550816,3.0115,3320.6,3320.0,0.7344915]
[1732453550817,0.08488186,3320.3,3320.0,0.7344915]
[1732453551036,0.55,3320.2,3320.0,0.7344915]
[1732453551549,0.63488186,3320.1,3320.0,0.7344915]
[1732453551761,0.55,3320.1,3320.0,5.43974614]
[1732453551945,0.55,3320.1,3320.0,5.40963]
[1732453552150,1.5512,3321.0,3320.4,2.40929]
[1732453552352,0.08488186,3320.9,3320.5,0.240929]
[1732453552527,0.08488186,3320.9,3320.2,2.4395913]
[1732453552721,0.08488186,3320.9,3320.2,0.0301113]
[1732453553023,3.0112,3321.0,3320.3,2.40941]
[1732453553234,11.13651398,3321.3,3320.3,2.40941]
[1732453553235,0.0851127,3320.8,3320.3,2.43949117]
[1732453553423,0.55,3320.9,3320.4,0.54394912]
[1732453553620,0.55,3320.9,3320.2,3.03011101]
[1732453553621,5.81e-06,3322.5,3322.4,1.5402]
[1732453553819,1.6125,3324.6,3322.4,1.5402]
[1732453553820,11.99797,3324.5,3322.5,3.0]
[1732453554157,11.99797,3324.5,3322.8,2.40755]
[1732453554158,0.08231519,3322.9,3322.8,2.40755]
[1732453554687,2.26961743,3323.7,3322.7,2.43775978]
[1732453554885,2.26961743,3323.7,3322.7,0.81464576]
[1732453555187,2.26961743,3323.7,3322.7,2.40766]
[1732453555188,0.08231519,3322.9,3322.7,2.40766]
[1732453555886,0.08231519,3322.9,3322.8,2.43769012]
[1732453556686,0.08231519,3322.9,3322.8,6.97789012]
[1732453556888,0.08231519,3322.9,3322.8,6.9478]
[1732453557062,0.08231519,3322.9,3322.8,7.893351]
[1732453557555,2.26961743,3323.7,3322.9,5.40753]
[1732453557951,2.26961743,3323.7,3322.9,5.43761533]
[1732453558352,2.26961743,3323.7,3322.9,6.17561699]
[1732453558553,2.26961743,3323.7,3322.9,7.29251379]
[1732453558789,2.26961743,3323.7,3322.9,7.26242846]
[1732453560201,2.26961743,3323.7,3323.6,3.98432]
[1732453560854,2.26961743,3323.7,3323.6,6.98432]
[1732453561055,2.26961743,3323.7,3323.6,7.92647125]
[1732453561662,2.81961743,3323.7,3323.6,7.92647125]
[1732453561895,2.26961743,3323.7,3323.6,7.92647125]
[1732453562131,2.35416777,3323.7,3323.6,7.92647125]
[1732453562287,2.26961743,3323.7,3323.6,7.92647125]
[1732453563195,7.43e-06,3323.7,3323.6,7.92647125]
[1732453565298,7.43e-06,3323.7,3323.6,8.02647125]
[1732453565541,0.05,3325.0,3323.6,8.02647125]
[1732453565851,0.05,3325.0,3324.6,2.70709]
[1732453566760,0.6980215,3324.7,3324.6,2.70709]
[1732453567249,0.1480215,3324.7,3324.6,5.70709]
[1732453567434,0.1480215,3324.7,3324.6,2.70709]
[1732453567746,0.1480215,3324.7,3324.6,2.73716423]
[1732453567908,0.1480215,3324.7,3324.6,6.43817965]
[1732453568110,0.1480215,3324.7,3324.6,6.40810542]
[1732453568345,1.5e-06,3324.7,3324.6,6.40810542]
[1732453568643,1.5e-06,3324.7,3324.6,7.97390542]
[1732453571549,1.5e-06,3325.0,3324.9,4.01058]
[1732453571769,1.5e-06,3325.0,3324.9,7.04064279]
[1732453571959,1.5e-06,3325.0,3324.9,7.01058]
[1732453573469,1.5e-06,3325.0,3324.9,7.40950175]
[1732453573608,3.00555,3327.2,3326.9,2.40463]
[1732453573609,8.99,3327.2,3326.9,2.40463]
[1732453573951,0.08066238,3327.1,3327.0,2.39956]
[1732453574308,0.59138557,3327.6,3327.0,2.39956]
[1732453574309,8.99,3327.5,3327.0,2.39956]
[1732453574508,0.08072946,3327.1,3327.0,2.39956]
[1732453574713,8.99,3327.5,3327.0,2.39956]
[1732453574915,1.6359,3327.0,3326.5,2.40486]
[1732453575110,1.6359,3327.0,3326.8,2.4047]
[1732453575317,1.6359,3327.0,3326.9,2.40464]
[1732453575562,1.6359,3327.9,3327.5,2.40414]
[1732453575718,1.6359,3327.9,3327.8,2.40399]
[1732453575928,1.6359,3328.3,3327.0,0.03004989]
[1732453576125,1.6359,3328.3,3327.9,2.40391]
[1732453577777,8.99,3328.4,3327.9,2.40391]
[1732453578150,8.99,3328.7,3327.9,2.40391]
[1732453578556,8.99,3328.7,3327.9,2.43395492]
[1732453578794,8.99,3328.7,3327.9,6.21774941]
[1732453578998,8.99,3328.7,3327.9,2.40391]
[1732453579896,9.02022387,3328.6,3327.9,2.40391]
[1732453580081,8.99,3328.6,3327.9,2.40391]
[1732453580400,8.99,3328.6,3327.5,2.40419]
[1732453580401,0.55,3327.9,3327.5,2.40419]
[1732453580701,0.78351215,3327.9,3327.3,2.40432]
[1732453580864,0.55,3327.9,3327.8,2.40399]
[1732453581600,0.55,3327.9,3327.8,2.70448]
[1732453581767,0.55,3327.9,3327.6,2.70458]
[1732453581968,0.55,3327.9,3327.6,2.70461]
[1732453582175,0.55,3327.7,3327.5,2.70467]
[1732453582656,0.55,3327.7,3327.6,2.70465]
[1732453583156,0.1480215,3328.0,3327.6,0.11]
[1732453583157,0.55,3327.9,3327.6,0.11]
[1732453583568,0.1480215,3328.0,3327.6,0.11]
[1732453583569,0.55,3327.7,3327.6,0.11]
[1732453583969,0.63207038,3327.7,3327.6,0.11]
[1732453585929,3.66736425,3327.7,3327.6,0.11]
[1732453586231,0.55,3326.8,3325.6,2.70627]
[1732453586437,0.03022387,3326.7,3325.6,0.0300601]
[1732453586726,0.55,3326.6,3325.8,2.70611]
[1732453586931,0.08207038,3326.7,3326.6,2.70546]
[1732453587088,1.5351,3327.2,3326.4,2.70562]
[1732453587288,1.5351,3327.2,3327.0,2.70511]
[1732453587517,1.5351,3327.2,3326.6,2.70546]
[1732453587696,1.5351,3327.2,3325.8,2.97966701]
[1732453587697,1.5351,3327.2,3326.9,2.70515]
[1732453588188,1.5351,3327.2,3327.0,2.70513]
[1732453588389,0.55,3327.1,3327.0,2.70513]
[1732453588590,0.55,3327.1,3326.7,2.70535]
[1732453588890,8.99,3327.0,3326.5,2.70552]
[1732453589090,0.55,3326.8,3326.2,2.70578]
[1732453589688,3.58611387,3326.8,3326.2,2.70578]
[1732453589933,0.55,3326.8,3326.2,2.70578]
[1732453590128,0.55,3326.8,3326.2,0.03005957]
[1732453590342,0.55,3326.8,3326.6,2.70541]
[1732453590634,0.55,3326.8,3326.7,2.70538]
[1732453591190,1.5351,3327.3,3327.1,2.705]
[1732453591387,1.5351,3327.8,3327.4,2.70476]
[1732453591658,1.5351,3327.8,3327.0,0.03005068]
[1732453591980,1.5351,3327.6,3326.5,2.7055]
[1732453592179,1.5351,3327.6,3326.1,0.03005147]
[1732453592180,3.00543,3327.3,3326.2,3.0]
[1732453592361,3.00634,3326.3,3325.4,2.70644]
[1732453592566,3.00634,3326.3,3325.6,2.70627]
[1732453592567,0.454144,3326.2,3325.6,2.70627]
[1732453592893,0.454144,3326.2,3325.3,2.70649]
[1732453592894,9.57022387,3326.2,3325.3,2.70649]
[1732453593176,0.1,3327.2,3325.3,2.70649]
[1732453593177,0.55,3325.9,3325.3,2.70646]
[1732453593373,0.55,3325.9,3325.7,2.70613]
[1732453593537,0.55,3325.9,3325.5,2.70633]
[1732453594281,0.55,3326.0,3325.9,2.70603]
[1732453594794,0.55,3326.0,3325.9,2.976633]
[1732453595887,0.55,3326.0,3325.9,2.70603]
[1732453596069,0.55,3326.0,3325.6,2.70625]
[1732453596279,0.55,3326.0,3325.6,2.70622]
[1732453596459,0.55,3326.2,3325.2,2.70657]
[1732453596660,0.55,3325.8,3325.2,2.73663417]
[1732453596874,0.55,3325.8,3325.0,4.23393]
[1732453597187,0.55,3325.6,3325.0,0.03006827]
[1732453597359,0.55,3325.6,3324.7,0.3017]
[1732453597559,0.55,3325.6,3324.9,2.70679]
[1732453597769,3.55716,3325.4,3324.7,0.48759689]
[1732453597980,0.55,3325.2,3324.5,2.70711]
[1732453598288,0.55,3325.2,3324.4,2.70721]
[1732453598449,3.00708,3325.5,3324.5,0.03007216]
[1732453598450,0.55,3325.0,3324.5,0.03007216]
[1732453598795,0.55,3325.0,3324.7,2.70697]
[1732453598951,0.55,3325.3,3324.7,2.70697]
[1732453599290,0.55,3325.1,3324.7,0.03007224]
[1732453599517,0.55,3324.9,3324.0,2.70756]
[1732453599823,3.00752,3325.0,3323.8,1.5272]
[1732453599824,0.55,3324.7,3323.8,1.5272]
[1732453600116,1.554,3324.4,3323.8,0.03007911]
[1732453600301,0.55,3324.3,3323.5,2.70793]
[1732453600513,0.55,3324.3,3323.4,1.65387974]
[1732453600819,0.55,3324.1,3324.0,2.70758]
[1732453601117,0.55,3324.8,3323.9,0.03008055]
[1732453601320,0.55,3324.8,3324.4,2.70719]
[1732453601526,0.55,3324.6,3324.1,2.70746]
[1732453601683,0.55,3324.6,3323.8,0.0300768]
[1732453601872,0.55,3324.4,3323.8,2.7377568]
[1732453602079,0.55,3324.4,3323.8,2.70773]
[1732453602317,0.55,3324.4,3324.0,2.70753]
[1732453602616,0.63040505,3324.3,3324.2,5.70741]
[1732453602786,8.99,3325.6,3324.2,5.70741]
[1732453602975,3.08428547,3325.5,3324.6,2.70703]
[1732453603199,3.08428547,3325.5,3324.6,2.73710098]
[1732453603377,1.554,3325.4,3324.4,0.03007104]
[1732453603578,3.08448022,3325.3,3324.4,2.70722]
[1732453603787,0.07723022,3325.3,3324.6,2.70702]
[1732453604016,0.07723022,3325.3,3324.7,2.73707386]
[1732453604179,0.07723022,3325.3,3324.7,2.707]
[1732453604385,0.07723022,3325.3,3324.6,3.0]
[1732453604913,0.07723022,3325.3,3324.4,2.70718]
[1732453605231,0.07723022,3325.3,3325.2,2.7066]
[1732453605392,1.563,3325.9,3325.2,2.73666895]
[1732453605717,0.07723022,3325.8,3325.5,2.70634]
[1732453606015,0.07723022,3325.8,3325.1,3.0]
[1732453606223,0.07723022,3325.8,3325.2,2.7066]
[1732453606404,0.07723022,3325.8,3325.3,2.7065]
[1732453606780,0.07723022,3325.8,3325.2,2.70659]
[1732453607089,0.55,3325.7,3325.3,2.70652]
[1732453607292,0.55,3325.7,3324.9,2.70684]
[1732453607439,0.07723022,3325.8,3325.2,2.70652]
[1732453607440,0.55,3325.8,3325.2,2.70652]
[1732453607641,0.55,3325.6,3325.5,4.70635]
[1732453607878,0.55,3325.6,3325.5,2.0]
[1732453608077,0.62723022,3325.6,3325.5,2.0]
[1732453609346,3.63420022,3325.6,3325.5,2.0]
[1732453609550,0.99367263,3325.6,3325.5,2.0]
[1732453609790,4.00064263,3325.6,3325.5,2.0]
[1732453610082,5.56364263,3325.6,3325.5,2.0]
[1732453610291,5.5938665,3325.6,3325.5,2.0]
[1732453610584,2.19023022,3325.6,3325.5,2.0]
[1732453611180,1.64023022,3325.6,3325.5,2.0]
[1732453612466,2.19023022,3325.6,3325.5,2.0]
[1732453612700,5.19720022,3325.6,3325.5,2.0]
[1732453613206,14.18720022,3325.6,3325.5,2.0]
[1732453613559,16.20729424,3325.6,3325.5,2.0]
[1732453613754,16.20729424,3325.6,3325.5,0.33158681]
[1732453614058,3.0081,3324.4,3323.7,2.70782]
[1732453614263,8.99,3324.4,3323.8,2.70774]
[1732453614570,8.99,3324.4,3323.6,2.70787]
[1732453614571,0.07771603,3324.3,3323.6,2.70787]
[1732453614884,0.07771603,3324.3,3323.3,0.610814]
[1732453614885,0.07771603,3324.3,3323.7,0.03008283]
[1732453615067,0.07771603,3324.3,3324.0,2.70751]
[1732453615275,0.07771603,3324.3,3324.1,2.70748]
[1732453615572,0.07771603,3324.3,3324.2,2.70741]
[1732453615892,0.55,3324.7,3324.3,2.70733]
[1732453616056,0.58022387,3325.0,3324.3,2.70728]
[1732453616396,0.07746939,3324.6,3324.3,2.70728]
[1732453616608,2.95228126,3325.1,3324.9,2.70684]
[1732453616609,1.563,3325.1,3324.9,2.70684]
[1732453616761,1.563,3325.1,3324.8,2.70689]
[1732453616964,1.563,3325.1,3324.6,2.70707]
[1732453617507,1.563,3325.1,3324.7,2.707]
[1732453618104,0.55,3325.0,3324.7,2.707]
[1732453618513,0.55,3325.0,3324.5,2.70715]
[1732453618872,3.00761,3324.9,3324.3,2.70733]
[1732453619067,0.55,3324.8,3324.3,2.70733]
[1732453619530,3.00785,3324.7,3324.0,2.70757]
[1732453619671,0.58022387,3324.6,3324.0,2.70757]
[1732453619871,0.55,3324.6,3323.8,2.70774]
[1732453620194,0.55,3324.4,3324.0,2.70751]
[1732453620373,0.55,3324.4,3323.9,2.70758]
[1732453620574,0.55,3324.4,3324.2,2.7074]
[1732453620776,0.55,3324.4,3324.1,2.70749]
[1732453621201,0.55,3324.4,3324.3,2.70733]
[1732453621404,8.99,3324.7,3323.7,2.70782]
[1732453621710,8.99,3324.7,3324.4,2.70718]
[1732453622060,8.99,3324.7,3324.5,2.70712]
[1732453622308,8.99,3324.7,3324.6,2.70709]
[1732453623374,9.06762636,3324.7,3324.1,1.5661]
[1732453623719,9.06762636,3324.7,3323.5,0.28477143]
[1732453623720,2.0618,3324.5,3322.8,3.3]
[1732453624018,1.5118,3324.5,3324.4,2.70725]
[1732453624181,1.5118,3324.5,3323.5,1.5661]
[1732453624182,0.55,3324.9,3323.7,2.70777]
[1732453624506,8.99,3324.9,3324.4,2.70725]
[1732453624711,0.61465833,3325.3,3324.9,2.70684]
[1732453624921,0.55,3325.2,3325.1,2.70668]
[1732453625278,9.60465833,3325.3,3325.2,2.7066]
[1732453625489,1.5118,3325.4,3324.9,2.7068]
[1732453625691,0.55,3325.3,3324.9,2.70681]
[1732453625915,0.55,3325.3,3324.7,2.70699]
[1732453626120,4.54921387,3325.4,3324.5,2.70713]
[1732453626121,0.55,3325.1,3324.5,2.70713]
[1732453626329,0.55,3324.7,3324.0,3.0]
[1732453626528,0.55,3324.7,3323.9,2.70766]
[1732453626529,0.55,3324.5,3323.9,2.70766]
[1732453626715,0.03022387,3324.4,3323.9,2.70766]
[1732453626926,8.99,3324.5,3324.4,2.70725]
[1732453627509,8.99,3324.5,3324.2,2.70737]
[1732453627931,0.55,3324.4,3323.9,2.70761]
[1732453628142,0.899,3324.5,3323.8,2.70773]